fUSD/lending_fUSD_20240423
["ID","MTS","AMOUNT","RATE_DAILY","PERIOD"]
[323293050,1713877852158,-952.04,0.00012293,2]
[323293051,1713877852169,-500.0,0.00012293,2]
[323293052,1713877852181,-606.22,0.00012293,2]
[323293053,1713877852193,-601.6,0.00012294,2]
[323293054,1713877852204,-835.63,0.00012294,2]
[323293055,1713877852216,-500.0,0.00012294,2]
[323293056,1713877852227,-500.0,0.00012294,2]
[323293057,1713877852239,-500.0,0.00012294,2]
[323293058,1713877852250,-500.0,0.00012294,2]
[323293059,1713877852262,-500.0,0.00012294,2]
[323293060,1713877852274,-727.69,0.00012294,2]
[323293061,1713877852285,-872.25,0.00012294,2]
[323293062,1713877852298,-722.45,0.00012294,2]
[323293063,1713877852309,-500.0,0.00012294,2]
[323293064,1713877852321,-500.0,0.00012294,2]
[323293065,1713877852332,-500.0,0.00012294,2]
[323293066,1713877852345,-500.0,0.00012294,2]
[323293067,1713877852357,-528.51,0.00012294,2]
[323293068,1713877852369,-500.0,0.00012294,2]
[323293069,1713877852381,-500.0,0.00012294,2]
[323293070,1713877852393,-500.0,0.00012294,2]
[323293071,1713877852405,-776.33,0.00012294,2]
[323293072,1713877852418,-500.0,0.00012294,2]
[323293073,1713877852430,-500.0,0.00012294,2]
[323293074,1713877852443,-500.0,0.00012294,2]
[323293075,1713877852454,-500.0,0.00012294,2]
[323293076,1713877852466,-500.0,0.00012294,2]
[323293077,1713877852478,-1062.45,0.00012294,2]
[323293078,1713877852490,-937.53,0.00012294,2]
[323293079,1713877852502,-500.0,0.00012294,2]
[323293080,1713877852515,-150.0,0.00012294,2]
[323293081,1713877852527,-500.0,0.00012294,2]
[323293082,1713877852538,-500.0,0.00012294,2]
[323293083,1713877852551,-371.83751273,0.00012294,2]
[323293084,1713877852565,-500.0,0.00012294,2]
[323293085,1713877852577,-740.01,0.00012294,2]
[323293086,1713877852589,-795.07,0.00012294,2]
[323293087,1713877852602,-500.0,0.00012294,2]
[323293088,1713877852613,-500.0,0.00012294,2]
[323293089,1713877852625,-500.0,0.00012294,2]
[323293090,1713877852637,-500.0,0.00012294,2]
[323293091,1713877852648,-500.0,0.00012294,2]
[323293092,1713877852659,-500.0,0.00012294,2]
[323293093,1713877852671,-500.0,0.00012294,2]
[323293094,1713877852682,-500.0,0.00012294,2]
[323293095,1713877852694,-545.54,0.00012294,2]
[323293096,1713877852705,-500.0,0.00012294,2]
[323293097,1713877852717,-500.0,0.00012294,2]
[323293098,1713877852729,-757.73,0.00012294,2]
[323293099,1713877852740,-500.0,0.00012294,2]
[323293100,1713877852751,-390.48,0.00012294,2]
[323293101,1713877852763,-500.0,0.00012294,2]
[323293102,1713877852774,-865.98,0.00012294,2]
[323293103,1713877852786,-500.0,0.00012294,2]
[323293104,1713877852797,-500.0,0.00012294,2]
[323293105,1713877852808,-15436.81,0.00012294,2]
[323293106,1713877852820,-500.0,0.00012294,2]
[323293107,1713877852831,-500.0,0.00012294,2]
[323293108,1713877852843,-1761.3,0.00012294,2]
[323293109,1713877852854,-500.0,0.00012294,2]
[323293110,1713877852866,-500.0,0.00012294,2]
[323293111,1713877852877,-500.0,0.00012294,2]
[323293112,1713877852889,-500.0,0.00012294,2]
[323293113,1713877852900,-786.32,0.00012294,2]
[323293114,1713877852912,-883.29,0.00012294,2]
[323293115,1713877852924,-569.42,0.00012294,2]
[323293116,1713877852937,-500.0,0.00012294,2]
[323293117,1713877852950,-1006.3,0.00012294,2]
[323293118,1713877852962,-500.0,0.00012294,2]
[323293119,1713877852975,-1558.69,0.00012294,2]
[323293120,1713877852987,-500.0,0.00012294,2]
[323293121,1713877852999,-500.0,0.00012294,2]
[323293122,1713877853009,-853.16,0.00012294,2]
[323293123,1713877853018,-1288.5,0.00012294,2]
[323293124,1713877853028,-500.0,0.00012294,2]
[323293125,1713877853037,-500.0,0.00012294,2]
[323293126,1713877853047,-508.36,0.00012294,2]
[323293127,1713877853056,-500.0,0.00012294,2]
[323293128,1713877853066,-500.0,0.00012294,2]
[323293129,1713877853075,-1200.91,0.00012294,2]
[323293130,1713877853084,-500.0,0.00012294,2]
[323293131,1713877853094,-500.0,0.00012294,2]
[323293132,1713877853103,-3407.99,0.00012294,2]
[323293133,1713877853112,-500.0,0.00012294,2]
[323293134,1713877853122,-500.0,0.00012294,2]
[323293135,1713877853131,-500.0,0.00012294,2]
[323293136,1713877853140,-500.0,0.00012294,2]
[323293137,1713877853149,-500.0,0.00012294,2]
[323293138,1713877853500,-500.0,0.00012294,2]
[323293139,1713877853522,-516.22,0.00012294,2]
[323293140,1713877853540,-14351.2,0.00012294,2]
[323293141,1713877853549,-674.61,0.00012294,2]
[323293142,1713877853559,-500.0,0.00012294,2]
[323293143,1713877853571,-1064.52,0.00012294,2]
[323293144,1713877853581,-500.0,0.00012294,2]
[323293145,1713877853591,-1870.78,0.00012294,2]
[323293146,1713877853600,-558.36,0.00012294,2]
[323293147,1713877853610,-901.68,0.00012294,2]
[323293148,1713877853619,-500.0,0.00012294,2]
[323293149,1713877853629,-500.41,0.00012294,2]
[323293150,1713877853639,-2360.25,0.00012294,2]
[323293151,1713877853648,-500.0,0.00012294,2]
[323293152,1713877853658,-2740.74,0.00012294,2]
[323293153,1713877853667,-1680.98,0.00012294,2]
[323293154,1713877853676,-500.0,0.00012294,2]
[323293155,1713877853685,-559.42,0.00012294,2]
[323293156,1713877853695,-500.0,0.00012294,2]
[323293157,1713877853704,-2277.71,0.00012294,2]
[323293158,1713877853713,-500.0,0.00012294,2]
[323293159,1713877853722,-568.99,0.00012294,2]
[323293160,1713877853731,-3269.03,0.00012294,2]
[323293161,1713877853741,-1874.1,0.00012294,2]
[323293162,1713877853750,-571.51,0.00012294,2]
[323293163,1713877853759,-500.0,0.00012294,2]
[323293164,1713877853769,-500.0,0.00012294,2]
[323293165,1713877853778,-2169.86,0.00012294,2]
[323293166,1713877853787,-500.0,0.00012294,2]
[323293167,1713877853797,-586.86,0.00012294,2]
[323293168,1713877853807,-500.0,0.00012294,2]
[323293169,1713877853816,-500.0,0.00012294,2]
[323293170,1713877853826,-500.0,0.00012294,2]
[323293171,1713877853836,-15151.92,0.00012294,2]
[323293172,1713877853847,-500.0,0.00012294,2]
[323293173,1713877853856,-500.0,0.00012294,2]
[323293174,1713877853865,-500.0,0.00012294,2]
[323293175,1713877853875,-500.0,0.00012294,2]
[323293176,1713877853884,-1597.42,0.00012294,2]
[323293177,1713877853894,-5502.34,0.00012294,2]
[323293178,1713877853903,-619.89,0.00012294,2]
[323293179,1713877853912,-635.3,0.00012294,2]
[323293180,1713877853921,-500.0,0.00012294,2]
[323293181,1713877853931,-500.0,0.00012294,2]
[323293182,1713877853940,-500.0,0.00012294,2]
[323293183,1713877853949,-500.0,0.00012294,2]
[323293184,1713877853959,-1040.66,0.00012294,2]
[323293185,1713877853968,-500.0,0.00012295,2]
[323293186,1713877853977,-500.0,0.00012295,2]
[323293187,1713877853987,-500.0,0.00012295,2]
[323293188,1713877853996,-500.0,0.00012295,2]
[323293189,1713877854006,-542.35,0.00012295,2]
[323293190,1713877854015,-500.0,0.00012295,2]
[323293191,1713877854025,-555.58,0.00012295,2]
[323293192,1713877854035,-500.0,0.00012295,2]
[323293193,1713877854045,-500.0,0.00012295,2]
[323293194,1713877854054,-500.0,0.00012295,2]
[323293195,1713877854064,-731.08,0.00012295,2]
[323293196,1713877854074,-1272.4,0.00012295,2]
[323293197,1713877854083,-500.0,0.00012295,2]
[323293198,1713877854092,-737.04,0.00012295,2]
[323293199,1713877854102,-500.0,0.00012295,2]
[323293200,1713877854111,-802.03,0.00012295,2]
[323293201,1713877854120,-500.0,0.00012295,2]
[323293202,1713877854130,-500.0,0.00012295,2]
[323293203,1713877854139,-500.0,0.00012295,2]
[323293204,1713877854149,-500.0,0.00012295,2]
[323293205,1713877854158,-500.0,0.00012295,2]
[323293206,1713877854168,-500.0,0.00012295,2]
[323293207,1713877854177,-276.5,0.00012295,2]
[323293208,1713877854187,-500.0,0.00012295,2]
[323293209,1713877854196,-666.77,0.00012295,2]
[323293210,1713877854205,-500.0,0.00012295,2]
[323293211,1713877854215,-446.9,0.00012295,2]
[323293212,1713877854224,-500.0,0.00012295,2]
[323293213,1713877854233,-500.0,0.00012295,2]
[323293214,1713877854242,-500.0,0.00012295,2]
[323293215,1713877854252,-500.0,0.00012295,2]
[323293216,1713877854261,-568.94,0.00012295,2]
[323293217,1713877854270,-764.92,0.00012295,2]
[323293218,1713877854279,-500.0,0.00012295,2]
[323293219,1713877854288,-551.3,0.00012295,2]
[323293220,1713877854297,-500.0,0.00012295,2]
[323293221,1713877854306,-500.0,0.00012295,2]
[323293222,1713877854316,-500.0,0.00012295,2]
[323293223,1713877854326,-500.0,0.00012295,2]
[323293224,1713877854335,-547.26,0.00012295,2]
[323293225,1713877854346,-500.0,0.00012295,2]
[323293226,1713877854355,-500.0,0.00012295,2]
[323293227,1713877854364,-500.0,0.00012295,2]
[323293228,1713877854373,-500.0,0.00012295,2]
[323293229,1713877854383,-500.0,0.00012295,2]
[323293230,1713877854392,-500.0,0.00012295,2]
[323293231,1713877854402,-591.97,0.00012295,2]
[323293232,1713877854410,-500.0,0.00012295,2]
[323293233,1713877854419,-500.0,0.00012295,2]
[323293234,1713877854428,-517.91,0.00012295,2]
[323293235,1713877854437,-500.0,0.00012295,2]
[323293236,1713877854446,-500.0,0.00012295,2]
[323293237,1713877854455,-500.0,0.00012295,2]
[323293238,1713877854464,-500.0,0.00012295,2]
[323293239,1713877854473,-1089.17,0.00012295,2]
[323293240,1713877854482,-500.0,0.00012295,2]
[323293241,1713877854491,-938.53,0.00012295,2]
[323293242,1713877854500,-1087.7,0.00012295,2]
[323293243,1713877854509,-500.0,0.00012295,2]
[323293244,1713877854519,-647.28,0.00012295,2]
[323293245,1713877854528,-720.91,0.00012295,2]
[323293246,1713877854537,-2321.61,0.00012295,2]
[323293247,1713877854546,-500.0,0.00012295,2]
[323293248,1713877854555,-671.85,0.00012295,2]
[323293249,1713877854567,-500.0,0.00012295,2]
[323293250,1713877854576,-636.36,0.00012295,2]
[323293251,1713877854585,-660.29,0.00012295,2]
[323293252,1713877854595,-500.0,0.00012295,2]
[323293253,1713877854606,-500.0,0.00012295,2]
[323293254,1713877854616,-500.0,0.00012295,2]
[323293255,1713877854625,-500.0,0.00012295,2]
[323293256,1713877854636,-32593.75,0.00012295,2]
[323293257,1713877854645,-500.0,0.00012295,2]
[323293258,1713877854655,-500.0,0.00012295,2]
[323293259,1713877854664,-500.3,0.00012295,2]
[323293260,1713877854673,-549.78,0.00012295,2]
[323293261,1713877854682,-516.45,0.00012295,2]
[323293262,1713877854691,-659.77,0.00012295,2]
[323293263,1713877854700,-2353.59,0.00012295,2]
[323293264,1713877854709,-500.0,0.00012295,2]
[323293265,1713877854718,-500.0,0.00012295,2]
[323293266,1713877854728,-637.08,0.00012295,2]
[323293267,1713877854737,-2104.16,0.00012295,2]
[323293268,1713877854746,-500.0,0.00012295,2]
[323293269,1713877854755,-3553.7094177,0.00012295,2]
[323293270,1713877855122,-300.0,0.00012295,2]
[323293271,1713877855133,-1800.5705823,0.00012295,2]
[323293272,1713877855142,-500.0,0.00012295,2]
[323293273,1713877855151,-500.0,0.00012295,2]
[323293274,1713877855160,-500.0,0.00012295,2]
[323293275,1713877855169,-343.3094177,0.00012295,2]
[323293276,1713877855188,-156.6905823,0.00012295,2]
[323293277,1713877855197,-500.0,0.00012295,2]
[323293278,1713877855205,-1800.4,0.00012295,2]
[323293279,1713877855214,-500.0,0.00012295,2]
[323293280,1713877855223,-500.0,0.00012295,2]
[323293281,1713877855232,-500.0,0.00012295,2]
[323293282,1713877855241,-500.0,0.00012295,2]
[323293283,1713877855250,-796.65,0.00012295,2]
[323293284,1713877855258,-1502.65,0.00012295,2]
[323293285,1713877855267,-500.0,0.00012295,2]
[323293286,1713877855276,-5865.59,0.00012295,2]
[323293287,1713877855285,-961.44,0.00012295,2]
[323293288,1713877855295,-500.0,0.00012295,2]
[323293289,1713877855304,-1364.17,0.00012295,2]
[323293290,1713877855313,-1868.43,0.00012295,2]
[323293291,1713877855323,-2815.58,0.00012295,2]
[323293292,1713877855332,-523.23,0.00012295,2]
[323293293,1713877855342,-381.03,0.00012295,2]
[323293294,1713877855351,-500.0,0.00012295,2]
[323293295,1713877855360,-623.50581272,0.00012295,2]
[323293296,1713877855369,-500.0,0.00012295,2]
[323293297,1713877855378,-500.0,0.00012295,2]
[323293298,1713877855387,-500.0,0.00012295,2]
[323293299,1713877855396,-500.0,0.00012295,2]
[323293300,1713877855405,-500.0,0.00012295,2]
[323293301,1713877855414,-506.28,0.00012295,2]
[323293302,1713877855423,-1772.14,0.00012295,2]
[323293303,1713877855432,-500.0,0.00012295,2]
[323293304,1713877855441,-524.09,0.00012295,2]
[323293305,1713877855450,-500.0,0.00012295,2]
[323293306,1713877855459,-500.0,0.00012295,2]
[323293307,1713877855468,-728.49,0.00012295,2]
[323293308,1713877855478,-500.0,0.00012296,2]
[323293309,1713877855488,-500.0,0.00012296,2]
[323293310,1713877855497,-733.91,0.00012296,2]
[323293311,1713877855506,-500.0,0.00012296,2]
[323293312,1713877855516,-500.0,0.00012296,2]
[323293313,1713877855525,-500.0,0.00012296,2]
[323293314,1713877855534,-538.13,0.00012296,2]
[323293315,1713877855543,-500.0,0.00012296,2]
[323293316,1713877855553,-571.88,0.00012296,2]
[323293317,1713877855563,-622.66,0.00012296,2]
[323293318,1713877855572,-500.0,0.00012296,2]
[323293319,1713877855581,-648.04,0.00012296,2]
[323293320,1713877855592,-500.0,0.00012296,2]
[323293321,1713877855601,-500.0,0.00012296,2]
[323293322,1713877855612,-604.76,0.00012296,2]
[323293323,1713877855622,-982.09,0.00012296,2]
[323293324,1713877855631,-500.0,0.00012296,2]
[323293325,1713877855640,-500.0,0.00012296,2]
[323293326,1713877855649,-500.0,0.00012296,2]
[323293327,1713877855659,-500.0,0.00012296,2]
[323293328,1713877855668,-500.0,0.00012296,2]
[323293329,1713877855677,-500.0,0.00012296,2]
[323293330,1713877855686,-500.0,0.00012296,2]
[323293331,1713877855695,-500.0,0.00012296,2]
[323293332,1713877855704,-500.0,0.00012296,2]
[323293333,1713877855713,-500.0,0.00012296,2]
[323293334,1713877855722,-1145.22,0.00012296,2]
[323293335,1713877855731,-500.0,0.00012296,2]
[323293336,1713877855740,-173.23,0.00012296,2]
[323293337,1713877855750,-500.0,0.00012296,2]
[323293338,1713877855759,-500.0,0.00012296,2]
[323293339,1713877855768,-384.22248746,0.00012296,2]
[323293340,1713877855777,-1163.67,0.00012296,2]
[323293341,1713877855787,-500.0,0.00012296,2]
[323293342,1713877855796,-500.0,0.00012296,2]
[323293343,1713877855806,-500.0,0.00012296,2]
[323293344,1713877855815,-1079.95,0.00012296,2]
[323293345,1713877855824,-1680.68,0.00012296,2]
[323293346,1713877855834,-500.0,0.00012296,2]
[323293347,1713877855844,-500.0,0.00012296,2]
[323293348,1713877855854,-500.0,0.00012296,2]
[323293349,1713877855863,-500.0,0.00012296,2]
[323293350,1713877855872,-500.0,0.00012296,2]
[323293351,1713877855881,-500.0,0.00012296,2]
[323293352,1713877855890,-802.95,0.00012296,2]
[323293353,1713877855900,-500.0,0.00012296,2]
[323293354,1713877855909,-500.0,0.00012296,2]
[323293355,1713877855918,-570.08,0.00012296,2]
[323293356,1713877855927,-500.0,0.00012296,2]
[323293357,1713877855936,-500.0,0.00012296,2]
[323293358,1713877855945,-500.0,0.00012296,2]
[323293359,1713877855955,-500.0,0.00012296,2]
[323293360,1713877855964,-500.0,0.00012296,2]
[323293361,1713877855974,-500.0,0.00012296,2]
[323293362,1713877855983,-500.0,0.00012296,2]
[323293363,1713877855992,-1463.93,0.00012296,2]
[323293364,1713877856002,-643.33,0.00012296,2]
[323293365,1713877856011,-500.0,0.00012296,2]
[323293366,1713877856020,-500.0,0.00012296,2]
[323293367,1713877856029,-500.0,0.00012296,2]
[323293368,1713877856038,-500.0,0.00012296,2]
[323293369,1713877856048,-500.0,0.00012296,2]
[323293370,1713877856056,-500.0,0.00012296,2]
[323293371,1713877856066,-500.0,0.00012296,2]
[323293372,1713877856075,-1121.67,0.00012296,2]
[323293373,1713877856085,-678.49,0.00012296,2]
[323293374,1713877856095,-500.0,0.00012296,2]
[323293375,1713877856104,-500.0,0.00012296,2]
[323293376,1713877856114,-500.0,0.00012296,2]
[323293377,1713877856123,-500.0,0.00012296,2]
[323293378,1713877856132,-500.0,0.00012296,2]
[323293379,1713877856142,-500.0,0.00012296,2]
[323293380,1713877856151,-500.0,0.00012296,2]
[323293381,1713877856160,-500.0,0.00012296,2]
[323293382,1713877856171,-1019.67,0.00012296,2]
[323293383,1713877856180,-500.0,0.00012296,2]
[323293384,1713877856189,-500.0,0.00012296,2]
[323293385,1713877856199,-500.0,0.00012296,2]
[323293386,1713877856208,-500.0,0.00012296,2]
[323293387,1713877856218,-1504.69,0.00012296,2]
[323293388,1713877856228,-500.0,0.00012296,2]
[323293389,1713877856237,-562.1,0.00012296,2]
[323293390,1713877856247,-608.33,0.00012296,2]
[323293391,1713877856257,-655.57,0.00012296,2]
[323293392,1713877856267,-500.0,0.00012296,2]
[323293393,1713877856277,-500.0,0.00012296,2]
[323293394,1713877856287,-752.1,0.00012296,2]
[323293395,1713877856296,-500.0,0.00012296,2]
[323293396,1713877856306,-500.0,0.00012296,2]
[323293397,1713877856315,-500.0,0.00012296,2]
[323293398,1713877856325,-500.0,0.00012296,2]
[323293399,1713877856335,-500.0,0.00012296,2]
[323293400,1713877856344,-500.0,0.00012296,2]
[323293401,1713877856355,-500.0,0.00012296,2]
[323293402,1713877856364,-500.0,0.00012296,2]
[323293403,1713877856374,-500.0,0.00012296,2]
[323293404,1713877856383,-500.0,0.00012296,2]
[323293405,1713877856393,-653.42,0.00012296,2]
[323293406,1713877856402,-258.27101918,0.00012296,2]
[323293407,1713877856411,-335.78480384,0.00012296,2]
[323293408,1713877856420,-500.0,0.00012296,2]
[323293409,1713877856430,-501.7,0.00012296,2]
[323293410,1713877856439,-500.0,0.00012296,2]
[323293411,1713877856449,-500.0,0.00012296,2]
[323293412,1713877856459,-500.0,0.00012296,2]
[323293413,1713877856468,-500.0,0.00012296,2]
[323293414,1713877856478,-553.4541563,0.00012296,2]
[323293415,1713877856699,-500.0,0.00012296,2]
[323293416,1713877856713,-500.0,0.00012296,2]
[323293417,1713877856723,-500.0,0.00012296,2]
[323293418,1713877856732,-1508.24,0.00012296,2]
[323293419,1713877856746,-520.28,0.00012296,2]
[323293420,1713877856781,-500.0,0.00012296,2]
[323293421,1713877856791,-500.0,0.00012296,2]
[323293422,1713877856801,-500.0,0.00012296,2]
[323293423,1713877856811,-500.0,0.00012296,2]
[323293424,1713877856821,-500.0,0.00012296,2]
[323293425,1713877856832,-1043.36,0.00012296,2]
[323293426,1713877856842,-500.0,0.00012296,2]
[323293427,1713877856853,-511.81,0.00012296,2]
[323293428,1713877856862,-500.0,0.00012296,2]
[323293429,1713877856872,-455.78271799,0.000123,2]
[323293430,1713877856883,-14667.65910576,0.00012307,2]
[323293431,1713877856894,-1000.0,0.00012316,2]
[323293432,1713877856905,-163.9550383,0.0001236,2]
[323293433,1713877856915,-1503.94508567,0.00012366,2]
[323293434,1713877856925,-1417.32798384,0.00012368,2]
[323293435,1713877856934,-1000.0,0.00012369,2]
[323293436,1713877856945,-500.0,0.00012369,2]
[323293437,1713877856954,-2371.11337355,0.00012378,2]
[323293438,1713877856965,-176.68,0.0001239,2]
[323293439,1713877856976,-163.98,0.00012402,2]
[323293440,1713877856987,-234.0033369,0.00012404,2]
[323293441,1713877856997,-14667.65910576,0.00012405,2]
[323293442,1713877857006,-268.35852299,0.00012442,2]
[323293443,1713877857016,-53197.3144639,0.00012444,2]
[323293444,1713877857026,-500.0,0.00012461,2]
[323293445,1713877857037,-500.0,0.00012461,2]
[323293446,1713877857047,-1516.22,0.00012461,2]
[323293447,1713877857057,-5841.7850247,0.00012462,2]
[323293448,1713877857067,-834.5407178,0.00012462,2]
[323293449,1713877857077,-2049.9235368,0.00012462,2]
[323293450,1713877857087,-1022.5221302,0.00012462,2]
[323293451,1713877857099,-332.76192314,0.00012465,2]
[323293452,1713877857109,-82380.98719115,0.00012467,3]
[323293453,1713877857120,-182.92510726,0.00012468,2]
[323293454,1713877857131,-155.1416761,0.00012468,2]
[323293455,1713877857141,-162.24557716,0.00012468,2]
[323293456,1713877857151,-500.0,0.00012469,2]
[323293457,1713877857161,-500.0,0.00012469,2]
[323293458,1713877857172,-1516.22,0.00012469,2]
[323293459,1713877857183,-51537.20121606,0.0001247,2]
[323293460,1713877857198,-1084.06976491,0.0001247,2]
[323293461,1713877857217,-3049.76858233,0.0001247,2]
[323293462,1713877857817,-286.93626806,0.0001247,2]
[323293463,1713877857829,-6536.72520002,0.0001247,2]
[323293464,1713877857842,-728.79434185,0.0001247,2]
[323293465,1713877857856,-862.3800003,0.0001247,2]
[323293466,1713877857868,-2847.59268996,0.0001247,2]
[323293467,1713877857893,-25390.47037221,0.0001247,2]
[323293468,1713877857906,-3271.12180697,0.0001247,2]
[323293469,1713877857918,-555.61130365,0.0001247,2]
[323293470,1713877858347,-348.77655361,0.00011472,2]
[323293471,1713877858359,-151.22344639,0.00011472,2]
[323293472,1713877858368,-4921.77202915,0.0001247,2]
[323293473,1713877858516,-146200.36842678,0.0001247,2]
[323293474,1713877858525,-209.64203893,0.00012478,2]
[323293475,1713877858534,-157.042319,0.00012498,2]
[323293476,1713877858543,-157.042319,0.00012498,2]
[323293477,1713877858553,-157.042319,0.00012498,2]
[323293478,1713877858565,-157.042319,0.00012498,2]
[323293479,1713877858574,-157.042319,0.00012498,2]
[323293480,1713877858583,-3313.23439898,0.000125,2]
[323293481,1713877858593,-252.03453632,0.000125,2]
[323293482,1713877858604,-11000.0,0.000125,2]
[323293483,1713877858613,-286.89248032,0.000125,2]
[323293484,1713877858622,-2700.0,0.000125,4]
[323293485,1713877858631,-14667.65910576,0.00012504,2]
[323293486,1713877858642,-5332.24907,0.0001251,2]
[323293487,1713877858652,-761.7498671,0.0001251,2]
[323293488,1713877858660,-500.0,0.00012518,2]
[323293489,1713877858670,-1516.22,0.00012518,2]
[323293490,1713877858680,-500.0,0.00012519,2]
[323293491,1713877858690,-1516.22,0.00012519,2]
[323293492,1713877858700,-3700.0,0.00012528,2]
[323293493,1713877858709,-1877.433994,0.00012542,2]
[323293494,1713877858719,-157.042319,0.00012548,2]
[323293495,1713877858729,-157.042319,0.00012548,2]
[323293496,1713877858738,-157.042319,0.00012548,2]
[323293497,1713877858748,-157.042319,0.00012548,2]
[323293498,1713877858757,-157.042319,0.00012548,2]
[323293499,1713877858767,-48113.9164346,0.00012551,2]
[323293500,1713877858777,-942.2796264,0.00012553,2]
[323293501,1713877858786,-4822.7131153,0.00012562,2]
[323293502,1713877858795,-688.9590165,0.00012562,2]
[323293503,1713877858804,-1704.9444513,0.00012562,2]
[323293504,1713877858814,-862.0371227,0.00012562,2]
[323293505,1713877858824,-500.0,0.00012567,2]
[323293506,1713877858833,-500.0,0.00012567,2]
[323293507,1713877858843,-500.0,0.00012567,2]
[323293508,1713877858853,-906.49,0.00012567,2]
[323293509,1713877858862,-2574.73,0.00012567,2]
[323293510,1713877858871,-500.0,0.00012567,2]
[323293511,1713877858881,-500.0,0.00012567,2]
[323293512,1713877858890,-500.0,0.00012567,2]
[323293513,1713877858899,-910.95,0.00012567,2]
[323293514,1713877858909,-500.0,0.00012567,2]
[323293515,1713877858919,-500.0,0.00012567,2]
[323293516,1713877858928,-379.13185698,0.00012567,2]
[323293517,1713877858968,-120.86814302,0.00012567,2]
[323293518,1713877858978,-829.99,0.00012567,2]
[323293519,1713877858988,-585.62,0.00012567,2]
[323293520,1713877858997,-6354.8,0.00012567,2]
[323293521,1713877859007,-500.0,0.00012567,2]
[323293522,1713877859016,-500.0,0.00012567,2]
[323293523,1713877859077,-139.35173235,0.00012567,2]
[323293524,1713877859090,-812.68826765,0.00012567,2]
[323293525,1713877859100,-500.0,0.00012567,2]
[323293526,1713877859109,-606.22,0.00012567,2]
[323293527,1713877859118,-601.6,0.00012568,2]
[323293528,1713877859127,-500.0,0.00012568,2]
[323293529,1713877859137,-394.66,0.00012568,2]
[323293530,1713877859146,-500.0,0.00012568,2]
[323293531,1713877859155,-43.43023388,0.00012568,2]
[323293532,1713877859167,-456.56976612,0.00012568,2]
[323293533,1713877859176,-287.1753498,0.00012568,2]
[323293534,1713877859187,-440.5146502,0.00012568,2]
[323293535,1713877859196,-872.25,0.00012568,2]
[323293536,1713877859205,-722.45,0.00012568,2]
[323293537,1713877859214,-637.06,0.00012568,2]
[323293538,1713877859223,-500.0,0.00012568,2]
[323293539,1713877859233,-500.0,0.00012568,2]
[323293540,1713877859241,-500.0,0.00012568,2]
[323293541,1713877859251,-528.51,0.00012568,2]
[323293542,1713877859260,-500.0,0.00012568,2]
[323293543,1713877859269,-500.0,0.00012568,2]
[323293544,1713877859279,-500.0,0.00012568,2]
[323293545,1713877859288,-776.33,0.00012568,2]
[323293546,1713877859297,-500.0,0.00012568,2]
[323293547,1713877859306,-500.0,0.00012568,2]
[323293548,1713877859315,-500.0,0.00012568,2]
[323293549,1713877859325,-500.0,0.00012568,2]